lending/lending_fUSD_20251124
["ID","MTS","AMOUNT","RATE_DAILY","PERIOD"]
[394847469,1764013838151,-158.71699325,0.00016398,2]
[394847470,1764013838167,-160.98778428,0.00016398,2]
[394847471,1764013838179,-94.65587153,0.00016398,2]
[394847485,1764013842030,-740.19068473,0.0001619,2]
[394847486,1764013842053,-88.36466513,0.00016398,2]
[394847487,1764013842079,-500.0,0.00016398,2]
[394847488,1764013842105,-393.63930456,0.00016398,2]
[394847544,1764013843973,-106.36069544,0.00016398,2]
[394847545,1764013843982,-194.89964531,0.00016398,2]
[394847546,1764013843994,-305.10035469,0.00016398,2]
[394847547,1764013844003,-500.0,0.00016398,2]
[394847548,1764013844013,-135.27244431,0.00016398,2]
[394847549,1764013844029,-364.72755569,0.00016398,2]
[394847550,1764013844038,-500.0,0.00016398,2]
[394847551,1764013844047,-500.0,0.00016398,2]
[394847552,1764013844056,-500.0,0.00016398,2]
[394847553,1764013844066,-500.0,0.00016398,2]
[394847554,1764013844075,-500.0,0.00016398,2]
[394847555,1764013844085,-500.0,0.00016398,2]
[394847556,1764013844095,-500.0,0.00016398,2]
[394847557,1764013844105,-500.0,0.00016398,2]
[394847558,1764013844115,-637.06765616,0.00016398,2]
[394847559,1764013844125,-500.0,0.00016398,2]
[394847560,1764013844135,-500.0,0.00016398,2]
[394847561,1764013844144,-500.0,0.00016398,2]
[394847562,1764013844154,-500.0,0.00016398,2]
[394847563,1764013844164,-500.0,0.00016398,2]
[394847564,1764013844174,-500.0,0.00016398,2]
[394847565,1764013844184,-500.0,0.00016398,2]
[394847566,1764013844193,-500.0,0.00016398,2]
[394847567,1764013844203,-156.34154032,0.00016398,2]
[394847568,1764013844213,-500.0,0.00016398,2]
[394847569,1764013844223,-500.0,0.00016398,2]
[394847570,1764013844233,-426.848632,0.00016398,2]
[394847582,1764013845969,-318.18543558,0.00016289,2]
[394847583,1764013845978,-73.151368,0.00016398,2]
[394847584,1764013845988,-500.0,0.00016398,2]
[394847585,1764013845998,-500.0,0.00016398,2]
[394847586,1764013846007,-500.0,0.00016398,2]
[394847587,1764013846017,-500.0,0.00016398,2]
[394847588,1764013846026,-454.35676128,0.00016398,2]
[394847589,1764013846038,-45.64323872,0.00016398,2]
[394847590,1764013846047,-507.24696473,0.00016398,2]
[394847591,1764013846057,-500.0,0.00016398,2]
[394847592,1764013846066,-500.0,0.00016398,2]
[394847593,1764013846075,-500.0,0.00016398,2]
[394847594,1764013846085,-500.0,0.00016398,2]
[394847595,1764013846095,-500.0,0.00016398,2]
[394847596,1764013846104,-402.37671989,0.00016398,2]
[394847597,1764013846113,-500.0,0.00016398,2]
[394847598,1764013846123,-250.02703424,0.00016398,2]
[394847599,1764013846132,-500.0,0.00016398,2]
[394847600,1764013846141,-500.0,0.00016398,2]
[394847601,1764013846151,-500.0,0.00016398,2]
[394847602,1764013846160,-162.0244453,0.00016398,2]
[394847603,1764013846170,-500.0,0.00016398,2]
[394847604,1764013846181,-500.0,0.00016398,2]
[394847605,1764013846190,-500.0,0.00016398,2]
[394847606,1764013846199,-500.0,0.00016398,2]
[394847607,1764013846209,-350.0,0.00016398,2]
[394847608,1764013846218,-500.0,0.00016398,2]
[394847609,1764013846228,-500.0,0.00016398,2]
[394847610,1764013846237,-500.0,0.00016398,2]
[394847611,1764013846247,-500.0,0.00016398,2]
[394847612,1764013846256,-500.0,0.00016398,2]
[394847613,1764013846266,-469.54334712,0.00016398,2]
[394847614,1764013846278,-30.45665288,0.00016398,2]
[394847615,1764013846288,-389.54334712,0.00016398,2]
[394847616,1764013846307,-110.45665288,0.00016398,2]
[394847617,1764013846316,-519.4667205,0.00016398,2]
[394847618,1764013846325,-500.0,0.00016398,2]
[394847619,1764013846334,-529.1,0.00016398,2]
[394847620,1764013846343,-500.0,0.00016398,2]
[394847621,1764013846352,-151.0,0.000164,2]
[394847622,1764013846362,-500.0,0.00016438,2]
[394847623,1764013846371,-500.0,0.00016438,2]
[394847624,1764013846380,-458.41885142,0.00016438,2]
[394847625,1764013846389,-393.15669676,0.00016438,2]
[394847626,1764013846404,-106.84330324,0.00016438,2]
[394847627,1764013846414,-220.20732396,0.00016438,2]
[394847628,1764013846423,-500.0,0.00016438,2]
[394847629,1764013846434,-500.0,0.00016438,2]
[394847630,1764013846444,-246.37116376,0.00016438,2]
[394847631,1764013846453,-257.05910787,0.00016438,2]
[394847632,1764013846471,-200.0,0.00016518,2]
[394847633,1764013846481,-500.0,0.00016599,2]
[394847634,1764013846491,-500.0,0.00016599,2]
[394847635,1764013846501,-500.0,0.00016599,2]
[394847637,1764013846510,-500.0,0.00016599,2]
[394847639,1764013846519,-500.0,0.00016599,2]
[394847640,1764013846528,-500.0,0.00016599,2]
[394847641,1764013846538,-500.0,0.00016599,2]
[394847642,1764013846547,-500.0,0.00016599,2]
[394847643,1764013846557,-500.0,0.00016599,2]
[394847644,1764013846566,-500.0,0.00016599,2]
[394847645,1764013846575,-500.0,0.00016599,2]
[394847646,1764013846584,-500.0,0.00016599,2]
[394847647,1764013846593,-500.0,0.00016599,2]
[394847648,1764013846603,-500.0,0.00016599,2]
[394847649,1764013846612,-500.0,0.00016599,2]
[394847650,1764013846621,-500.0,0.00016599,2]
[394847651,1764013846630,-500.0,0.00016599,2]
[394847652,1764013846640,-555.26791659,0.00016599,2]
[394847653,1764013846649,-244.15,0.00016647,2]
[394847654,1764013846658,-1061.58,0.0001669,2]
[394847655,1764013846667,-156.433,0.00016786,2]
[394847656,1764013846677,-500.0,0.00016821,2]
[394847657,1764013846687,-500.0,0.00016821,2]
[394847658,1764013846696,-1000.0,0.00016921,2]
[394847659,1764013846706,-512.76513173,0.00016921,2]
[394847660,1764013846715,-294.42607375,0.00016921,2]
[394847661,1764013846724,-406.97735465,0.00016921,2]
[394847662,1764013846733,-966.96816163,0.00016921,2]
[394847663,1764013846743,-244.15,0.00016921,2]
[394847664,1764013846752,-10900.62,0.00016986,2]
[394847665,1764013846762,-250.0,0.00017,2]
[394847666,1764013846771,-1000.0,0.00017134,2]
[394847667,1764013846780,-181.06,0.00017183,2]
[394847668,1764013846790,-178.0,0.00017189,2]
[394847669,1764013846799,-244.15,0.00017195,2]
[394847670,1764013846809,-416.0,0.00017224,2]
[394847671,1764013846818,-51804.43,0.00017337,2]
[394847672,1764013846827,-244.19,0.00017468,2]
[394847673,1764013846836,-1500.0,0.00017468,2]
[394847674,1764013846846,-300.0,0.00017681,2]
[394847675,1764013846855,-300.0,0.00017681,2]
[394847676,1764013846864,-300.0,0.00017681,2]
[394847677,1764013846873,-300.0,0.00017681,2]
[394847678,1764013846882,-300.0,0.00017681,2]
[394847679,1764013846892,-250.0,0.00017681,2]
[394847680,1764013846902,-420.0,0.00017803,2]
[394847681,1764013846911,-171.08728529,0.00017871,2]
[394847682,1764013846921,-167.37962358,0.00017871,2]
[394847683,1764013846930,-1680.0,0.00017892,2]
[394847684,1764013846940,-175.00531583,0.000179,2]
[394847685,1764013846949,-198.71758341,0.00017961,2]
[394847686,1764013846959,-236.63105804,0.0001797,2]
[394847687,1764013846969,-500.0,0.0001797,2]
[394847688,1764013846979,-500.0,0.0001797,2]
[394847689,1764013846988,-477.66045433,0.0001797,2]
[394847690,1764013846997,-187.20377332,0.0001797,2]
[394847691,1764013847007,-372.20950074,0.0001797,2]
[394847692,1764013847016,-53792.4599925,0.00017971,2]
[394847693,1764013847026,-3291.0163927,0.00017971,2]
[394847694,1764013847035,-186044.8426077,0.00017971,2]
[394847695,1764013847044,-934.28192,0.00017971,2]
[394847696,1764013847054,-15664.30457,0.00017971,2]
[394847697,1764013847063,-5082.6976317,0.00017971,2]
[394847698,1764013847074,-113734.1639235,0.00017971,2]
[394847699,1764013847084,-3353.9681021,0.00017971,2]
[394847700,1764013847094,-500.0,0.00017973,2]
[394847701,1764013847105,-567.36840925,0.00017973,2]
[394847702,1764013847115,-503.32747912,0.00017973,2]
[394847703,1764013847124,-500.87478709,0.00017973,2]
[394847704,1764013847133,-500.0,0.00017973,2]
[394847705,1764013847143,-351.43137158,0.00017973,2]
[394847706,1764013847152,-500.0,0.00017973,2]
[394847707,1764013847161,-500.0,0.00017973,2]
[394847708,1764013847171,-500.0,0.00017973,2]
[394847709,1764013847181,-500.0,0.00017973,2]
[394847710,1764013847190,-546.63647952,0.00017973,2]
[394847711,1764013847200,-500.0,0.00017973,2]
[394847712,1764013847210,-298.00508969,0.00017973,2]
[394847713,1764013847220,-500.0,0.00017973,2]
[394847714,1764013847229,-500.0,0.00017999,2]
[394847715,1764013847239,-500.0,0.00017999,2]
[394847716,1764013847248,-500.0,0.00017999,2]
[394847717,1764013847257,-219901.22214573,0.00018,2]
[394847718,1764013847269,-655.0,0.00018,2]
[394847719,1764013847280,-282.635,0.00018,2]
[394847720,1764013847291,-4268.26589626,0.00018,2]
[394847721,1764013847302,-3924.21058312,0.00018,2]
[394847723,1764014338682,197.63,0.00013699,2]
[394847724,1764014345258,165.9,0.00012961,2]
[394847725,1764014380515,477.2622418,0.00015999,2]
[394847726,1764014495675,397.71853485,0.00015998,2]
[394847727,1764014610969,331.43211235,0.00015998,2]
[394847728,1764014699683,999.0,0.00015883,3]
[394847729,1764014726072,118.397111,0.00015998,2]
[394847731,1764014939942,166.66,0.00014826,2]
[394847732,1764014940161,166.66,0.00015138,2]
[394847733,1764014940453,166.66,0.00015451,2]
[394847734,1764014966378,1424.85,7.896e-05,2]
[394847735,1764014966591,1424.85,8.311e-05,2]
[394847736,1764014966803,1424.85,8.727e-05,2]
[394847737,1764014967030,1424.85,9.143e-05,2]
[394847738,1764014967241,1424.85,9.558e-05,2]
[394847739,1764014967449,1424.85,9.974e-05,2]
[394847740,1764014967678,950.93,0.00010389,2]
[394847741,1764014967701,473.92,0.00010389,2]
[394847742,1764014967894,1424.85,0.00010805,2]
[394847743,1764014968115,1424.85,0.0001122,2]
[394847744,1764014968428,1424.85,0.00011636,2]
[394847745,1764014968566,1424.85,0.00012052,2]
[394847746,1764014968776,1424.85,0.00012467,2]
[394847747,1764014969012,1424.85,0.00012883,2]
[394847748,1764014969239,976.99,0.00013298,2]
[394847749,1764014969261,447.86,0.00013298,2]
[394847750,1764014969440,1424.85,0.00013714,2]
[394847751,1764014969670,1424.85,0.00014129,2]
[394847752,1764014969913,1424.85,0.00014545,2]
[394847753,1764014970338,1424.85,0.0001496,2]
[394847754,1764014970542,1424.85,0.00015376,2]
[394847755,1764014973390,-166.66,0.00015763,2]
[394847756,1764014973412,-783.34,0.00015792,2]
[394847757,1764014975114,-300.0,0.00015792,2]
[394847758,1764014977688,-300.0,0.00015792,2]
[394847764,1764015032123,-41.51,0.00015792,2]
[394847765,1764015032133,-250.0,0.00015834,2]
[394847766,1764015032142,-250.0,0.00015904,2]
[394847767,1764015032152,-500.0,0.00015973,2]
[394847768,1764015032162,-500.0,0.00015973,2]
[394847769,1764015032172,-500.0,0.00015973,2]
[394847770,1764015032181,-500.0,0.00015973,2]
[394847771,1764015032190,-500.0,0.00015973,2]
[394847772,1764015032199,-500.0,0.00015973,2]
[394847773,1764015032209,-314.16821919,0.00015973,2]
[394847774,1764015032218,-603.25097443,0.00015976,2]
[394847775,1764015032281,-494.91920915,0.00015976,2]
[394847776,1764015032293,-519.39762887,0.00015976,2]
[394847777,1764015032303,-250.0,0.00015976,2]
[394847778,1764015032312,-500.0,0.00015998,2]
[394847779,1764015032321,-315.7073588,0.00015998,2]
[394847780,1764015032333,-24.623209,0.00015998,2]
[394847781,1764015032342,-300.0,0.00015998,2]
[394847782,1764015032352,-645.96466206,0.00015998,2]
[394847783,1764015032366,-554.03533794,0.00015998,2]
[394847784,1764015032376,-362.27817204,0.00015999,2]
[394847785,1764015032387,-3757.52724102,0.00015999,2]
[394847786,1764015032398,-2038.14590756,0.00015999,2]
[394847787,1764015032414,-1126.35397208,0.00015999,2]
[394847788,1764015032425,-490.024864,0.00015999,2]
[394847834,1764015037994,-819.08160824,0.00015939,2]
[394847835,1764015038049,-1119.5,0.00015939,2]
[394847836,1764015038104,-995.02582332,0.00015939,2]
[394847837,1764015038160,-272.68336489,0.00015939,2]
[394847853,1764015040070,-20772.21778101,0.00015939,2]
[394847854,1764015040081,-500.0,0.00015998,2]
[394847855,1764015040092,-160.98778428,0.00015998,2]
[394847856,1764015040104,-500.0,0.00015998,2]
[394847857,1764015040116,-500.0,0.00015998,2]
[394847858,1764015040129,-500.0,0.00015998,2]
[394847859,1764015040140,-161.98091605,0.00015998,2]
[394847860,1764015040151,-500.0,0.00015998,2]
[394847861,1764015040162,-500.0,0.00015998,2]
[394847862,1764015040173,-500.0,0.00015998,2]
[394847863,1764015040183,-500.0,0.00015998,2]
[394847864,1764015040195,-500.0,0.00015998,2]
[394847865,1764015040206,-500.0,0.00015998,2]
[394847866,1764015040217,-500.0,0.00015998,2]
[394847867,1764015040230,-500.0,0.00015998,2]
[394847868,1764015040242,-500.0,0.00015998,2]
[394847869,1764015040253,-500.0,0.00015998,2]
[394847870,1764015040264,-500.0,0.00015998,2]
[394847871,1764015040275,-500.0,0.00015998,2]
[394847872,1764015040286,-500.0,0.00015998,2]
[394847873,1764015040297,-500.0,0.00015998,2]
[394847874,1764015040308,-500.0,0.00015998,2]
[394847875,1764015040319,-500.0,0.00015998,2]
[394847876,1764015040331,-500.0,0.00015998,2]
[394847877,1764015040343,-592.03607466,0.00015998,2]
[394847878,1764015040354,-500.0,0.00015998,2]
[394847879,1764015040366,-500.0,0.00015998,2]
[394847880,1764015040377,-500.0,0.00015998,2]
[394847881,1764015040389,-500.0,0.00015998,2]
[394847882,1764015040401,-500.0,0.00015998,2]
[394847883,1764015040411,-500.0,0.00015998,2]
[394847884,1764015040423,-500.0,0.00015998,2]
[394847885,1764015040433,-500.0,0.00015998,2]
[394847886,1764015040442,-500.0,0.00015998,2]
[394847887,1764015040451,-500.0,0.00015998,2]
[394847889,1764015040460,-500.0,0.00015998,2]
[394847891,1764015040470,-500.0,0.00015998,2]
[394847893,1764015040479,-500.0,0.00015998,2]
[394847895,1764015040488,-500.0,0.00015998,2]
[394847897,1764015040497,-500.0,0.00015998,2]
[394847898,1764015040506,-500.0,0.00015998,2]
[394847900,1764015040515,-500.0,0.00015998,2]
[394847902,1764015040525,-45478.77744403,0.00015999,2]
[394847903,1764015040777,-10790.29324873,0.00015999,2]
[394847904,1764015040799,-306.75516906,0.00015999,2]
[394847905,1764015040810,-1297.56,0.00015999,2]
[394847906,1764015040821,-7765.01788975,0.00015999,2]
[394847907,1764015040834,-81612.762,0.00015999,2]
[394847908,1764015040845,-4335.12543046,0.00015999,2]
[394847909,1764015040981,-145.79748116,0.00015999,2]
[394847910,1764015040992,-1496.48708448,0.00015999,2]
[394847925,1764015043856,-785.0,0.00015999,2]
[394847931,1764015046399,-457.8,0.00015939,2]
[394847932,1764015046410,-296.95015238,0.00015939,2]
[394847933,1764015046419,-11743.0942482,0.00015999,2]
[394847934,1764015046433,-144936.78730883,0.00015999,2]
[394847935,1764015046443,-368666.4299126,0.00015999,2]
[394847936,1764015046454,-72865.782626,0.00015999,2]
[394847937,1764015046463,-466.7998894,0.00016039,2]
[394847938,1764015046472,-718.089,0.00016057,2]
[394847939,1764015046481,-34203.48,0.00016058,2]
[394847940,1764015046490,-233.3404211,0.00016073,2]
[394847941,1764015046499,-166.66,0.00016075,2]
[394847942,1764015046508,-550.0,0.00016098,2]
[394847944,1764015046517,-5558.70425338,0.00016099,2]
[394847946,1764015046526,-161.24676565,0.00016099,2]
[394847948,1764015046535,-504.6521356,0.00016122,2]
[394847949,1764015046544,-504.6521356,0.00016122,2]
[394847950,1764015046553,-8000.0,0.0001615,2]
[394847951,1764015046562,-151.0,0.00016186,2]
[394847952,1764015046572,-226.21864577,0.00016188,2]
[394847953,1764015046581,-254.31,0.00016188,2]
[394847954,1764015046590,-471.0960947,0.00016188,2]
[394847955,1764015046598,-500.0,0.00016188,2]
[394847956,1764015046607,-530.69689131,0.00016188,2]
[394847957,1764015046616,-600.0,0.00016189,2]
[394847959,1764015046626,-3673.8996,0.00016299,2]
[394847961,1764015046636,-166.66,0.00016387,2]
[394847962,1764015046645,-500.0,0.00016438,2]
[394847963,1764015046654,-422.26572216,0.00016438,2]
[394847964,1764015046663,-150.0,0.00016448,2]
[394847966,1764015046672,-254.31,0.00016462,2]
[394847967,1764015046682,-1000.0,0.00016521,2]
[394847969,1764015046691,-830.8232162,0.00016521,2]
[394847971,1764015046700,-1000.0,0.00016521,2]
[394847972,1764015046708,-1000.0,0.00016521,2]
[394847973,1764015046717,-500.0,0.00016574,2]
[394847974,1764015046725,-500.0,0.00016574,2]
[394847975,1764015046734,-500.0,0.00016574,2]
[394847976,1764015046742,-500.0,0.00016574,2]
[394847977,1764015046751,-500.0,0.00016574,2]
[394847978,1764015046760,-500.0,0.00016574,2]
[394847979,1764015046768,-500.0,0.00016574,2]
[394847980,1764015046777,-500.0,0.00016574,2]
[394847981,1764015046786,-500.0,0.00016574,2]
[394847982,1764015046795,-500.0,0.00016574,2]
[394847983,1764015046803,-199.03492457,0.00016574,2]
[394847984,1764015046812,-500.0,0.00016574,2]
[394847985,1764015046825,-500.0,0.00016574,2]
[394847986,1764015046834,-500.0,0.00016574,2]
[394847987,1764015046842,-500.0,0.00016574,2]
[394847988,1764015046851,-4026.19,0.00016614,2]
[394847989,1764015046862,-254.31,0.00016736,2]
[394847990,1764015046871,-13730.3040245,0.00016761,2]
[394847991,1764015046880,-9999.99,0.00016922,2]
[394847992,1764015046889,-150.99,0.00016922,2]
[394847993,1764015046899,-999.99,0.00016922,2]
[394847994,1764015046908,-233.3404211,0.00016987,2]
[394847995,1764015046917,-1000.0,0.00017,2]
[394847996,1764015046927,-1042.09709135,0.00017068,2]
[394847997,1764015046937,-300.0,0.00017418,2]
[394847998,1764015046947,-300.0,0.00017418,2]
[394847999,1764015046956,-300.0,0.00017418,2]
[394848000,1764015046966,-300.0,0.00017418,2]
[394848001,1764015046975,-300.0,0.00017418,2]
[394848002,1764015046983,-250.0,0.00017418,2]
[394848003,1764015046995,-1680.0,0.00017579,2]
[394848004,1764015047004,-877.15026966,0.00017678,2]
[394848005,1764015047013,-167.37962358,0.00017879,2]
[394848006,1764015047022,-165.57435909,0.00017879,2]
[394848007,1764015047033,-233.3404211,0.000179,2]
[394848008,1764015047042,-222.0,0.00017962,2]
[394848009,1764015047051,-500.0,0.00017973,2]
[394848010,1764015047060,-500.0,0.00017973,2]
[394848011,1764015047069,-500.0,0.00017973,2]
[394848012,1764015047078,-500.0,0.00017973,2]
[394848013,1764015047087,-500.0,0.00017973,2]
[394848014,1764015047096,-286.76685813,0.00017973,2]
[394848015,1764015047105,-500.0,0.00017973,2]
[394848016,1764015047114,-500.0,0.00017973,2]
[394848017,1764015047123,-23448.34250181,0.00017976,2]
[394848039,1764015226312,-161.24676565,0.000158,2]
[394848040,1764015226335,-300.0,0.00015897,2]
[394848041,1764015226360,-500.0,0.00015898,2]
[394848042,1764015226392,-500.0,0.00015898,2]
[394848043,1764015226420,-500.0,0.00015898,2]
[394848044,1764015226445,-500.0,0.00015898,2]
[394848045,1764015226470,-500.0,0.00015898,2]
[394848046,1764015226495,-500.0,0.00015898,2]
[394848047,1764015226520,-500.0,0.00015898,2]
[394848048,1764015226545,-500.0,0.00015898,2]
[394848049,1764015226569,-500.0,0.00015898,2]
[394848050,1764015226594,-500.0,0.00015898,2]
[394848051,1764015226622,-500.0,0.00015898,2]
[394848052,1764015226898,-500.0,0.00015898,2]
[394848053,1764015226922,-500.0,0.00015898,2]
[394848054,1764015226948,-617.60028883,0.00015898,2]
[394848055,1764015226972,-500.0,0.00015898,2]
[394848056,1764015226995,-500.0,0.00015898,2]
[394848057,1764015227018,-500.0,0.00015898,2]
[394848058,1764015227041,-500.0,0.00015898,2]
[394848059,1764015227064,-500.0,0.00015898,2]
[394848060,1764015227088,-500.0,0.00015898,2]
[394848061,1764015227112,-500.0,0.00015898,2]
[394848062,1764015227136,-500.0,0.00015898,2]
[394848063,1764015227160,-613.4435226,0.00015898,2]
[394848064,1764015227184,-500.0,0.00015898,2]
[394848065,1764015227218,-323.79973654,0.00015898,2]
[394848066,1764015227243,-500.0,0.00015898,2]
[394848067,1764015227270,-33583.90968638,0.00015899,2]
[394848068,1764015648153,172.07205562,0.00015716,2]
[394848069,1764015693838,713.193,0.00015581,2]
[394848070,1764015746601,156.88,0.00019178,30]
[394848071,1764015919523,1542.63494438,9e-05,2]
[394848072,1764015919548,1457.36177063,9e-05,2]
[394848073,1764015960792,8542.64822937,8e-05,2]
[394848074,1764015960820,10000.01,8e-05,2]
[394848075,1764015960855,4893.33516724,8e-05,2]
[394848076,1764015964476,5106.67483276,0.00011,2]
[394848077,1764015964500,2969.35181105,0.00011,2]
[394848079,1764016033885,5311.04400855,0.0001305,2]
[394848108,1764016064693,1719.6141804,0.00013,2]
[394848109,1764016064716,2678.77870363,0.00013,2]
[394848121,1764016084953,2578.08169637,0.0001439,2]
[394848124,1764016087963,635.66047941,0.000135,2]
[394848130,1764016096771,389.1789499,7.888e-05,2]
[394848131,1764016102766,222.54961791,0.0001,2]
[394848133,1764016108594,266.6048547,0.000107,2]
[394848137,1764016115252,91389.1,0.00016,4]
[394848138,1764016115277,80209.82712795,0.00016,4]
[394848139,1764016115747,3229.15569808,0.0001,2]
[394848140,1764016115769,63.33892704,0.0001,2]
[394848141,1764016164565,645.27,0.00015648,2]
[394848145,1764016180826,304.67224216,0.00015699,2]
[394848146,1764016203382,8986.7288308,0.00015699,2]
[394848147,1764016203407,10000.01,0.00015699,2]
[394848148,1764016203428,6122.34738604,0.00015699,2]
[394848149,1764016221606,161.2,0.00015634,2]
[394848159,1764016232242,-877.457195,0.00015798,2]
[394848167,1764016232299,-322.542805,0.00015798,2]
[394848168,1764016232308,-47.457195,0.00015799,2]
[394848169,1764016232319,-1094.8712413,0.00015799,2]
[394848170,1764016232334,-2334.41575869,0.00015799,2]
[394848171,1764016232355,-29164.37140325,0.00015799,2]
[394848172,1764016232366,-47311.69843639,0.00015799,2]
[394848173,1764016232377,-405.14652792,0.00015799,2]
[394848220,1764016238309,-406.31344899,0.00015798,2]
[394848221,1764016238319,-500.0,0.00015798,2]
[394848222,1764016238328,-500.0,0.00015798,2]
[394848223,1764016238339,-500.0,0.00015798,2]
[394848224,1764016238348,-500.0,0.00015798,2]
[394848225,1764016238358,-500.0,0.00015798,2]
[394848226,1764016238367,-500.0,0.00015798,2]
[394848227,1764016238376,-500.0,0.00015798,2]
[394848228,1764016238386,-500.0,0.00015798,2]
[394848229,1764016238395,-500.0,0.00015798,2]
[394848230,1764016238404,-500.0,0.00015798,2]
[394848231,1764016238413,-500.0,0.00015798,2]
[394848232,1764016238423,-500.0,0.00015798,2]
[394848233,1764016238432,-500.0,0.00015798,2]
[394848234,1764016238442,-500.0,0.00015798,2]
[394848235,1764016238451,-500.0,0.00015798,2]
[394848236,1764016238460,-500.0,0.00015798,2]
[394848237,1764016238470,-500.0,0.00015798,2]
[394848238,1764016238479,-500.0,0.00015798,2]
[394848239,1764016238488,-500.0,0.00015798,2]
[394848240,1764016238498,-500.0,0.00015798,2]
[394848241,1764016238507,-260.10640423,0.00015798,2]
[394848242,1764016238516,-500.0,0.00015798,2]
[394848243,1764016238526,-500.0,0.00015798,2]
[394848244,1764016238535,-500.0,0.00015798,2]
[394848245,1764016238544,-679642.03943745,0.00015799,2]
[394848246,1764016238554,-1000.0,0.00015799,2]
[394848247,1764016238563,-1069.3997,0.00015799,2]
[394848248,1764016238573,-80959.6984,0.00015799,2]
[394848250,1764016238583,-2500.0,0.00015799,2]
[394848251,1764016238592,-235.0806,0.00015799,2]
[394848252,1764016238602,-250.0,0.000158,2]
[394848253,1764016238612,-5391.17502224,0.000158,2]
[394848254,1764016238622,-160.11084447,0.000158,2]
[394848255,1764016238631,-747.87698853,0.000158,2]
[394848256,1764016238642,-250.0,0.00015822,2]
[394848257,1764016238652,-25109.08621675,0.00015832,2]
[394848258,1764016238661,-501.64742584,0.00015873,2]
[394848259,1764016238670,-500.0,0.00015873,2]
[394848260,1764016238680,-2175.13432188,0.000159,2]
[394848261,1764016238689,-25109.08621675,0.00015966,2]
[394848263,1764016238699,-25109.08621675,0.00016099,2]
[394848264,1764016238708,-1292.2,0.00016135,2]
[394848265,1764016238718,-500.0,0.0001617,2]
[394848266,1764016238727,-500.0,0.00016188,2]
[394848267,1764016238736,-500.0,0.00016188,2]
[394848268,1764016238746,-5000.0,0.000162,5]
[394848269,1764016238755,-25109.08621675,0.00016233,2]
[394848270,1764016238764,-304.67224215,0.000163,2]
[394848271,1764016238774,-25109.08621675,0.00016366,2]
[394848272,1764016238783,-500.0,0.00016438,2]
[394848273,1764016238793,-500.0,0.00016438,2]
[394848274,1764016238802,-500.0,0.00016438,2]
[394848275,1764016238812,-491.43382697,0.00016438,2]
[394848276,1764016238821,-500.0,0.00016438,2]
[394848277,1764016238831,-500.0,0.00016438,2]
[394848278,1764016238840,-428.73723181,0.00016438,2]
[394848279,1764016238850,-2293.06,0.00016438,2]
[394848280,1764016238859,-25109.08621675,0.000165,2]
[394848281,1764016238868,-254.0,0.00016511,2]
[394848282,1764016238878,-10817.82,0.00016537,2]
[394848283,1764016238888,-25109.08621675,0.00016633,2]
[394848284,1764016238897,-775.31981375,0.000167,2]
[394848285,1764016238907,-191.53,0.00016712,2]
[394848286,1764016238916,-500.0,0.00016718,2]
[394848287,1764016238926,-500.0,0.00016718,2]
[394848289,1764016238937,-305.2826978,0.00016718,2]
[394848291,1764016238946,-500.0,0.00016718,2]